bitfinex/quotes_SOLUSD_20240930
["timestamp","ask_amount","ask_price","bid_price","bid_amount"]
[1727693576065,15.5017,154.4,154.35,10.66589449]
[1727693580405,15.5017,154.4,154.35,14.73669495]
[1727693580576,15.5017,154.4,154.35,10.66589449]
[1727693580776,15.5017,154.4,154.35,14.73669495]
[1727693581082,15.5017,154.4,154.35,10.66589449]
[1727693581281,15.5017,154.4,154.35,14.73669495]
[1727693581477,15.5017,154.4,154.35,10.66589449]
[1727693581680,15.5017,154.4,154.35,14.73669495]
[1727693581991,15.5017,154.4,154.35,10.66589449]
[1727693582183,15.5017,154.4,154.35,14.73669495]
[1727693582493,15.5017,154.4,154.35,10.66589449]
[1727693582667,15.5667,154.44,154.39,9.37046155]
[1727693582872,6.2464,154.46,154.42,9.37046155]
[1727693583086,6.2464,154.46,154.43,1.29487678]
[1727693584076,6.2464,154.46,154.41,1.29486826]
[1727693584709,6.2464,154.46,154.4,13.44288584]
[1727693584710,6.2464,154.46,154.4,9.37046155]
[1727693584976,6.2464,154.46,154.4,4.07242429]
[1727693585187,6.2464,154.46,154.4,0.12549]
[1727693585400,6.2464,154.46,154.4,4.19791429]
[1727693585590,6.2464,154.46,154.4,0.12549]
[1727693585792,6.2464,154.46,154.4,4.19791429]
[1727693585990,6.2464,154.46,154.4,0.12549]
[1727693586194,6.2464,154.46,154.4,4.19791429]
[1727693586387,6.2464,154.46,154.41,5.36732443]
[1727693586688,6.2464,154.46,154.41,4.07242429]
[1727693586879,6.2464,154.46,154.4,9.49595155]
[1727693587196,6.2464,154.46,154.41,5.3673254]
[1727693587401,15.5667,154.48,154.41,5.3673254]
[1727693587896,15.5667,154.48,154.4,9.49595155]
[1727693588197,15.5667,154.48,154.41,4.07498403]
[1727693590308,15.5667,154.48,154.42,4.07498403]
[1727693590479,15.5667,154.48,154.41,4.07498403]
[1727693590679,15.5667,154.48,154.42,4.07498403]
[1727693590874,15.5667,154.48,154.41,4.07498403]
[1727693591177,15.5667,154.48,154.42,4.07498403]
[1727693591394,15.5667,154.48,154.41,4.07498403]
[1727693591709,15.5667,154.48,154.42,4.07498403]
[1727693591907,15.5667,154.48,154.41,4.07498403]
[1727693592084,15.5667,154.48,154.42,4.07498403]
[1727693592399,15.5667,154.48,154.41,4.07498403]
[1727693592596,15.5667,154.48,154.42,4.07498403]
[1727693592799,15.5667,154.48,154.4,9.49595155]
[1727693592800,15.5667,154.48,154.41,4.07498403]
[1727693593106,15.5667,154.48,154.42,4.07498403]
[1727693593297,15.5667,154.48,154.41,4.07498403]
[1727693593498,15.5667,154.48,154.42,4.07498403]
[1727693593688,15.5667,154.48,154.41,4.07498403]
[1727693593889,15.5667,154.48,154.42,4.07498403]
[1727693594094,0.79949531,154.47,154.41,4.07498403]
[1727693594605,15.5667,154.48,154.41,4.07498403]
[1727693594905,15.5667,154.48,154.39,4.07498403]
[1727693595094,15.5667,154.48,154.4,5.36994538]
[1727693595286,15.5667,154.48,154.41,4.07498403]
[1727693595610,22.04,154.48,154.41,4.07498403]
[1727693595797,0.79949531,154.47,154.39,4.07498403]
[1727693596001,0.79949531,154.47,154.4,4.07498403]
[1727693596205,0.79949531,154.47,154.39,4.07498403]
[1727693596390,0.79949531,154.47,154.4,4.07498403]
[1727693596707,0.79949531,154.47,154.39,4.07498403]
[1727693596912,0.79949531,154.47,154.4,4.07498403]
[1727693597216,22.04,154.48,154.41,4.07498403]
[1727693597416,22.04,154.48,154.39,4.07498403]
[1727693597601,22.04,154.48,154.4,4.07498403]
[1727693597791,22.04,154.48,154.39,4.07498403]
[1727693597992,22.04,154.48,154.4,4.07498403]
[1727693598315,22.04,154.48,154.39,4.30661653]
[1727693598491,22.04,154.48,154.4,4.05563653]
[1727693599410,22.04,154.48,154.41,4.05563653]
[1727693599730,22.04,154.48,154.4,4.05563653]
[1727693599892,22.04,154.48,154.39,0.25098]
[1727693600297,0.79949531,154.47,154.39,0.25098]
[1727693600824,22.04,154.48,154.39,0.12549]
[1727693601190,22.04,154.48,154.41,4.05583906]
[1727693601520,22.04,154.48,154.4,4.05583906]
[1727693601816,22.04,154.48,154.39,0.12549]
[1727693602694,22.04,154.48,154.39,1.42048504]
[1727693606315,12.854,154.47,154.39,1.29499504]
[1727693606504,12.854,154.47,154.35,86.94127306]
[1727693606505,0.79949531,154.46,154.38,9.37046155]
[1727693606696,12.854,154.47,154.38,9.37046155]
[1727693610821,12.854,154.47,154.39,1.29504433]
[1727693612603,12.854,154.47,154.38,9.37046155]
[1727693616025,0.79949531,154.46,154.38,9.37046155]
[1727693616215,12.854,154.47,154.38,9.37046155]
[1727693617806,0.79949531,154.46,154.38,9.37046155]
[1727693618729,22.63969531,154.45,154.36,6.73513658]
[1727693618901,15.3656,154.45,154.36,6.73513658]
[1727693619426,23.776884,154.44,154.36,6.73513658]
[1727693619635,22.6058,154.42,154.36,6.73513658]
[1727693619841,0.79949531,154.41,154.31,18.08600246]
[1727693620000,16.13,154.42,154.32,6.74567702]
[1727693620429,0.79949531,154.41,154.32,6.74567702]
[1727693621036,0.79949531,154.41,154.33,20.0]
[1727693621732,16.13,154.42,154.33,20.0]
[1727693623430,15.90917858,154.42,154.34,1.29543962]
[1727693623606,15.90917858,154.42,154.33,20.0]
[1727693625035,0.79949531,154.41,154.33,20.0]
[1727693625705,22.38507858,154.42,154.33,20.0]
[1727693627414,24.57637931,154.41,154.32,6.74567702]
[1727693627734,15.8934,154.4,154.32,6.74567702]
[1727693627921,0.79949531,154.39,154.32,6.74567702]
[1727693628739,6.244,154.38,154.32,6.74567702]
[1727693628926,0.79949531,154.37,154.3,0.2627002]
[1727693629528,15.5777,154.36,154.3,0.2627002]
[1727693633040,0.79949531,154.35,154.3,0.2627002]
[1727693633426,15.5777,154.36,154.31,1.2959179]
[1727693635644,15.5777,154.36,154.3,1.55853577]
[1727693639425,0.12549,154.39,154.3,1.55853577]
[1727693640349,0.12549,154.39,154.34,6.4789]
[1727693641135,6.4776,154.38,154.34,6.4789]
[1727693642344,22.3612,154.37,154.34,6.4789]
[1727693650956,16.3363,154.37,154.35,6.4784]
[1727693652957,16.3363,154.37,154.34,22.6769]
[1727693653551,16.3363,154.37,154.34,16.1978]
[1727693653752,16.3363,154.37,154.35,6.4787]
[1727693654662,15.536,154.41,154.4,6.4766]
[1727693655033,21.7898,154.45,154.41,16.1902]
[1727693655358,15.536,154.45,154.43,6.4751]
[1727693655744,15.536,154.45,154.44,6.475]
[1727693656647,15.536,154.45,154.41,16.1902]
[1727693657250,15.536,154.45,154.42,1.29510349]
[1727693657538,15.536,154.45,154.41,16.1902]
[1727693657539,15.536,154.45,154.43,6.475]
[1727693661752,0.79949531,154.44,154.41,22.6663]
[1727693662140,0.79949531,154.44,154.42,4.05992079]
[1727693662346,22.0106,154.45,154.41,22.6663]
[1727693662645,7.27449531,154.44,154.41,16.1902]
[1727693664067,22.0106,154.45,154.41,16.1902]
[1727693664866,22.0106,154.45,154.41,22.6663]
[1727693666683,12.7267,154.49,154.45,6.4745]
[1727693667645,15.8322,154.5,154.48,6.4733]
[1727693668045,6.4716,154.52,154.48,6.4733]
[1727693668349,6.4717,154.52,154.47,16.184]
[1727693668564,6.4717,154.52,154.48,6.4732]
[1727693668957,15.9235,154.54,154.47,22.6576]
[1727693669164,6.4721,154.51,154.47,22.6576]
[1727693671070,0.79949531,154.5,154.42,32.379]
[1727693671271,6.4729,154.49,154.45,6.4744]
[1727693671471,0.79949531,154.48,154.45,6.4744]
[1727693671664,7.27309531,154.48,154.44,22.6617]
[1727693671964,6.4737,154.47,154.44,16.1868]
[1727693672171,6.4734,154.48,154.44,16.1868]
[1727693672368,0.12549,154.47,154.44,16.1868]
[1727693674255,6.59929,154.47,154.43,6.4753]
[1727693675789,15.0397,154.48,154.43,16.1882]
[1727693676372,15.0397,154.48,154.45,6.4742]
[1727693677173,15.0397,154.48,154.46,6.474]
[1727693677371,20.0,154.51,154.45,16.1861]
[1727693677372,15.7177,154.51,154.45,16.1861]
[1727693677571,22.1898,154.51,154.47,6.4734]
[1727693679878,15.7177,154.51,154.48,6.4732]
[1727693680079,6.4717,154.52,154.48,6.4732]
[1727693680277,20.0,154.54,154.47,16.1839]
[1727693680587,6.4713,154.53,154.49,6.4728]
[1727693681478,6.4713,154.53,154.48,6.4731]
[1727693682887,24.027864,154.54,154.48,6.4731]
[1727693683074,6.4717,154.52,154.48,6.4731]
[1727693683785,0.79949531,154.51,154.48,6.4731]
[1727693684787,6.4717,154.52,154.48,6.4731]
[1727693686491,6.4717,154.52,154.47,16.1839]
[1727693686492,6.4717,154.52,154.47,22.6575]
[1727693686696,6.4717,154.52,154.48,6.4732]
[1727693689180,6.4721,154.51,154.47,22.6576]
[1727693691988,6.4729,154.49,154.45,6.4742]
[1727693692197,0.79949531,154.48,154.45,6.4742]
[1727693692886,0.79949531,154.48,154.44,22.6826]
[1727693692887,0.79949531,154.48,154.46,6.4741]
[1727693693069,0.79949531,154.49,154.46,6.4741]
[1727693694096,6.4726,154.5,154.46,6.4741]
[1727693694590,0.79949531,154.49,154.46,6.4741]
[1727693700380,6.4726,154.5,154.46,6.4741]
[1727693701678,24.027864,154.54,154.44,22.6826]
[1727693701878,6.473,154.49,154.45,6.4744]
[1727693702093,0.79949531,154.48,154.45,6.4744]
[1727693703697,7.27299531,154.48,154.44,22.6619]
[1727693703895,0.79949531,154.47,154.44,22.6619]
[1727693704084,7.27329531,154.47,154.44,16.187]
[1727693704286,0.79949531,154.46,154.4,6.6216]
[1727693704487,6.4743,154.46,154.42,6.4755]
[1727693704818,0.79949531,154.45,154.42,6.4755]
[1727693705796,6.4743,154.46,154.42,6.4755]
[1727693706282,0.79949531,154.45,154.42,6.4755]
[1727693706483,6.4743,154.46,154.42,6.4755]
[1727693706683,0.79949531,154.45,154.42,6.4755]
[1727693708400,6.4743,154.46,154.42,6.4755]
[1727693709810,16.1768,154.5,154.42,1.29515022]
[1727693710002,16.1778,154.54,154.45,16.1862]
[1727693710003,32.5973,154.54,154.45,16.1862]
[1727693710210,6.4721,154.51,154.47,6.4737]
[1727693712003,6.4721,154.51,154.46,6.474]
[1727693712400,6.4726,154.5,154.46,6.474]
[1727693714608,6.4721,154.51,154.47,6.4737]
[1727693715690,6.4721,154.51,154.46,6.474]
[1727693717316,6.4721,154.51,154.47,6.4736]
[1727693717514,16.1747,154.57,154.5,6.4721]
[1727693718093,6.4712,154.53,154.49,22.6542]
[1727693720301,20.12549,154.56,154.49,16.1815]
[1727693720514,6.4697,154.57,154.52,6.4713]
[1727693720684,6.4697,154.57,154.53,6.4711]
[1727693721216,6.4697,154.57,154.51,17.47363185]
[1727693721401,6.4697,154.57,154.52,6.4715]
[1727693722096,0.79949531,154.56,154.48,16.1829]
[1727693722400,6.47,154.56,154.51,6.4717]
[1727693722996,6.47,154.56,154.52,4.06445041]
[1727693723303,6.47,154.56,154.52,10.53585041]
[1727693723497,6.47,154.56,154.52,4.06445041]
[1727693723814,7.26989531,154.55,154.51,6.4719]
[1727693724719,0.79949531,154.54,154.51,6.4719]
[1727693725219,0.79949531,154.54,154.52,4.0641719]
[1727693725388,20.0,154.57,154.52,4.06419151]
[1727693725585,6.4701,154.56,154.52,4.06419151]
[1727693725814,0.79949531,154.55,154.52,4.06419151]
[1727693727089,7.26989531,154.55,154.52,4.06419151]
[1727693727290,0.79949531,154.54,154.51,10.53609151]
[1727693727490,6.4704,154.55,154.51,10.53609151]
[1727693727692,0.79949531,154.54,154.51,10.53609151]
[1727693728520,0.79949531,154.54,154.51,4.06419151]
[1727693729222,0.79949531,154.54,154.5,22.6526]
[1727693729414,0.79949531,154.54,154.5,16.1805]
[1727693729600,6.4704,154.55,154.51,6.4719]
[1727693729802,0.79949531,154.54,154.51,6.4719]
[1727693730201,0.79949531,154.54,154.51,10.53165526]
[1727693731209,0.79949531,154.54,154.51,6.4719]
[1727693731522,0.79949531,154.54,154.51,10.53053913]
[1727693732196,7.27029531,154.54,154.51,4.05863913]
[1727693732519,6.4716,154.52,154.48,6.4732]
[1727693733001,6.4716,154.52,154.48,10.53092724]
[1727693733320,20.0,154.57,154.48,4.05772724]
[1727693733619,6.471,154.54,154.5,6.4723]
[1727693734412,0.79949531,154.53,154.5,6.4723]
[1727693734610,6.471,154.54,154.5,6.4723]
[1727693735736,6.59579,154.56,154.51,6.4718]
[1727693735895,0.12549,154.56,154.51,6.4718]
[1727693736099,6.4704,154.55,154.51,6.4718]
[1727693736701,6.4701,154.56,154.52,6.4714]
[1727693736902,6.4701,154.56,154.51,22.6514]
[1727693738401,20.0,154.57,154.53,6.4711]
[1727693738402,6.4697,154.57,154.53,6.4711]
[1727693738716,0.79949531,154.57,154.51,16.1795]
[1727693738908,6.4701,154.56,154.52,6.4715]
[1727693739308,6.4698,154.57,154.53,6.4712]
[1727693739508,22.4479,154.62,154.53,1.29419579]
[1727693739699,15.9619,154.62,154.53,1.29419579]
[1727693739903,22.4296,154.62,154.58,6.4691]
[1727693740204,6.4677,154.62,154.57,6.4692]
[1727693741116,16.1673,154.64,154.57,6.4692]
[1727693741323,6.4679,154.61,154.57,6.4692]
[1727693741624,6.4688,154.59,154.55,22.6459]
[1727693742205,6.4692,154.58,154.55,16.1756]
[1727693742518,0.12549,154.62,154.53,6.4708]
[1727693742699,6.4698,154.57,154.52,22.6498]
[1727693743725,6.4698,154.57,154.53,6.4711]
[1727693743899,6.4703,154.56,154.52,22.65]
[1727693744108,6.4703,154.55,154.52,16.1785]
[1727693744329,0.12549,154.58,154.47,6.3711]
[1727693744504,0.12549,154.58,154.49,16.1815]
[1727693744505,6.4714,154.53,154.49,16.1815]
[1727693746529,6.4713,154.53,154.49,16.1815]
[1727693746717,6.4716,154.52,154.47,6.4736]
[1727693746907,0.12549,154.57,154.48,6.4732]
[1727693746908,6.4712,154.53,154.48,6.4732]
[1727693748208,6.47,154.56,154.51,6.472]
[1727693752729,0.25098,154.57,154.51,6.472]
[1727693752905,6.4704,154.55,154.51,6.472]
[1727693758230,22.19,154.6,154.56,16.1741]
[1727693758434,15.5618,154.6,154.56,16.1741]
[1727693758638,21.5557,154.64,154.56,16.1741]
[1727693758835,6.4674,154.62,154.57,6.4692]
[1727693759523,6.4674,154.62,154.56,16.1741]
[1727693759524,6.4679,154.61,154.56,22.6439]
[1727693759720,21.5557,154.64,154.56,22.6439]
[1727693759721,21.5557,154.64,154.56,22.644]
[1727693760845,6.4679,154.61,154.56,22.644]
[1727693761224,6.4679,154.61,154.57,6.4695]
[1727693762237,0.79949531,154.6,154.56,16.1741]
[1727693763328,0.79949531,154.59,154.52,15.4301]
[1727693763524,6.4688,154.59,154.54,6.4706]
[1727693766442,6.4688,154.59,154.55,6.4703]
[1727693766827,0.12549,154.59,154.55,6.4703]
[1727693767139,6.4684,154.6,154.56,7.76393172]
[1727693767318,6.4684,154.6,154.56,6.4699]
[1727693768742,0.25098,154.62,154.55,17.4692626]
[1727693769040,0.12549,154.62,154.57,6.4692]
[1727693769239,6.468,154.61,154.57,6.4692]
[1727693770720,0.79949531,154.6,154.57,6.4692]
[1727693771036,0.79949531,154.6,154.56,6.4698]
[1727693771340,7.26779531,154.6,154.56,6.4698]
[1727693771727,0.79949531,154.59,154.56,6.4698]
[1727693771927,6.469,154.59,154.55,22.6456]
[1727693772545,0.79949531,154.58,154.55,22.6456]
[1727693772743,0.12549,154.61,154.55,16.1754]
[1727693773045,24.027864,154.62,154.55,16.1754]
[1727693773230,6.4683,154.6,154.56,6.4698]
[1727693773918,7.26849531,154.59,154.55,16.1754]
[1727693774324,6.469,154.59,154.55,16.1754]
[1727693774526,6.469,154.59,154.55,22.6457]
[1727693774738,0.25098,154.62,154.55,16.1754]
[1727693775259,0.25098,154.62,154.55,17.46927607]
[1727693775837,6.71878,154.62,154.57,6.4694]
[1727693776041,6.4679,154.61,154.57,6.4694]
[1727693776620,22.6236,154.67,154.59,6.4687]
[1727693776816,6.4669,154.64,154.6,6.4682]
[1727693779139,6.4669,154.64,154.6,7.76178745]
[1727693779857,6.4669,154.64,154.6,6.4682]
[1727693781944,16.1639,154.67,154.59,17.46492432]
[1727693782151,6.467,154.63,154.59,23.93342432]
[1727693782329,6.467,154.63,154.59,22.6399]
[1727693788737,7.26709531,154.62,154.58,6.469]
[1727693788937,0.79949531,154.61,154.58,6.469]
[1727693789759,6.4676,154.62,154.58,6.469]
[1727693790058,0.79949531,154.61,154.58,6.469]
[1727693791942,7.26739531,154.61,154.58,6.469]
[1727693792153,6.4679,154.61,154.58,6.469]
[1727693792343,24.027864,154.64,154.56,16.1743]
[1727693792532,6.4679,154.61,154.57,6.4694]
[1727693798446,0.79949531,154.6,154.53,15.8855]
[1727693798650,6.4689,154.59,154.55,7.76392801]
[1727693800343,6.4689,154.59,154.55,1.29392801]
[1727693800546,6.4689,154.59,154.56,6.4699]
[1727693801250,6.4689,154.59,154.55,7.76402801]
[1727693801446,6.4689,154.59,154.55,6.4701]
[1727693801950,6.4689,154.59,154.55,7.76403935]
[1727693802471,6.4689,154.59,154.55,6.4701]
[1727693802659,6.4689,154.59,154.55,7.7640356]
[1727693804876,6.4689,154.59,154.55,6.4701]
[1727693805057,7.26859531,154.58,154.54,12.7139]
[1727693805252,6.4691,154.58,154.54,12.7139]
[1727693805469,6.4688,154.59,154.55,6.4703]
[1727693806677,6.4691,154.58,154.55,6.4703]
[1727693807179,40.196764,154.62,154.53,32.0627]
[1727693807180,7.26899531,154.57,154.53,32.0627]
[1727693807379,6.4695,154.57,154.53,38.5336]
[1727693808774,20.0,154.61,154.53,32.0627]
[1727693808975,6.4693,154.58,154.54,6.4707]
[1727693809359,40.196764,154.62,154.54,1.29406076]
[1727693809572,6.4685,154.6,154.56,6.4699]
[1727693810780,6.4688,154.59,154.55,22.646]
[1727693813477,6.4682,154.61,154.57,6.4693]
[1727693814783,6.4682,154.61,154.55,16.1758]
[1727693814977,6.4682,154.61,154.56,6.4698]
[1727693815375,6.4683,154.6,154.56,6.4698]
[1727693815779,6.4683,154.6,154.55,22.646]
[1727693818164,6.469,154.59,154.55,22.646]
[1727693818365,6.469,154.59,154.55,16.1758]
[1727693819683,0.79949531,154.58,154.53,15.8855]
[1727693819865,0.25098,154.57,154.52,16.1788]
[1727693820060,6.4701,154.56,154.52,22.6502]
[1727693820691,6.4704,154.55,154.51,6.472]
[1727693821159,6.4701,154.56,154.51,6.472]
[1727693821765,6.4701,154.56,154.52,6.4716]
[1727693822070,6.4701,154.56,154.51,6.4719]
[1727693822984,0.25098,154.57,154.51,6.4719]
[1727693823291,6.4704,154.55,154.51,6.4719]
[1727693824977,6.4704,154.55,154.51,7.76616031]
[1727693825181,6.4701,154.56,154.52,6.4716]
[1727693827664,20.0,154.58,154.51,1.29426031]
[1727693827871,6.4686,154.6,154.55,16.1754]
[1727693828086,6.4686,154.6,154.55,22.6457]
[1727693828591,6.4687,154.59,154.55,22.6457]
[1727693829788,6.4687,154.59,154.55,16.1754]
[1727693829986,6.4692,154.58,154.55,16.1754]
[1727693830377,6.4692,154.58,154.54,6.4706]
[1727693830581,0.79949531,154.57,154.54,6.4706]
[1727693830769,6.4692,154.58,154.54,6.4706]
[1727693832293,6.4692,154.58,154.53,6.471]
[1727693833097,0.79949531,154.61,154.56,21.9639]
[1727693833297,6.4673,154.63,154.57,1.29370588]
[1727693833478,6.4673,154.63,154.59,6.4686]
[1727693834095,16.5038,154.68,154.57,1.29370588]
[1727693834282,6.4666,154.64,154.6,6.468]
[1727693834795,16.1621,154.69,154.61,7.76122736]
[1727693835095,6.4658,154.66,154.61,7.76122736]
[1727693835275,6.4658,154.66,154.62,6.4674]
[1727693837600,7.2938212,154.71,154.63,23.5551775]
[1727693837784,7.2938212,154.71,154.66,6.4657]
[1727693841399,7.2938212,154.71,154.67,7.75822247]
[1727693843609,7.2938212,154.71,154.66,22.6296]
[1727693845108,7.2938212,154.71,154.67,1.29286456]
[1727693845909,7.2938212,154.71,154.66,22.6296]
[1727693848298,0.8300212,154.71,154.66,16.164]
[1727693848496,6.4645,154.69,154.66,16.164]
[1727693849614,1.62951651,154.71,154.63,22.2618]
[1727693849806,0.25098,154.69,154.63,22.2618]
[1727693850009,0.25098,154.67,154.6,16.1701]
[1727693850215,0.79949531,154.66,154.6,16.1701]
[1727693850412,20.25098,154.67,154.6,16.1701]
[1727693850598,0.79949531,154.66,154.6,16.1701]
[1727693851317,6.4669,154.64,154.6,22.6382]
[1727693851623,6.4669,154.64,154.61,1.29341253]
[1727693853714,6.4669,154.64,154.6,22.6382]
[1727693854418,6.4662,154.65,154.61,6.4678]
[1727693854719,6.4662,154.65,154.6,22.6382]
[1727693855419,6.467,154.63,154.6,16.1701]
[1727693856594,20.25098,154.67,154.6,16.1701]
[1727693856595,6.4667,154.64,154.6,16.1701]
[1727693859333,6.4667,154.64,154.6,23.93177609]
[1727693860240,0.25098,154.67,154.61,6.4677]
[1727693860241,6.4663,154.65,154.61,6.4677]
[1727693860416,6.4658,154.66,154.62,7.76060006]
[1727693861426,6.4658,154.66,154.62,6.4673]
[1727693861626,6.4658,154.66,154.61,6.4677]
[1727693861937,6.4662,154.65,154.61,6.4677]
[1727693863840,0.92498531,154.67,154.6,16.1701]
[1727693864046,6.4666,154.64,154.6,22.6382]
[1727693864427,6.4671,154.63,154.6,16.1701]
[1727693865039,6.4671,154.63,154.6,17.46359963]
[1727693865539,6.4667,154.64,154.6,23.93179963]
[1727693879352,6.4667,154.64,154.61,4.06284298]
[1727693880052,6.4663,154.65,154.62,7.76087086]
[1727693880352,36.1616,154.69,154.62,23.92887086]
[1727693880353,6.4658,154.66,154.62,23.92887086]
[1727693880559,6.4658,154.66,154.62,22.6354]
[1727693881058,6.4662,154.65,154.62,22.6354]
[1727693881258,6.4662,154.65,154.62,16.1681]
[1727693881469,6.4662,154.65,154.62,17.46146003]
[1727693882160,6.4662,154.65,154.62,16.1681]
[1727693883658,6.4662,154.65,154.62,17.46146217]
[1727693884859,6.4662,154.65,154.62,16.1681]
[1727693885940,6.4662,154.65,154.62,20.23257838]
[1727693886257,6.4662,154.65,154.62,16.1681]
[1727693886969,6.4662,154.65,154.62,20.23296712]
[1727693887268,6.4662,154.65,154.62,16.1681]
[1727693890947,7.26619531,154.64,154.6,6.4682]
[1727693891154,16.41348,154.68,154.59,45.092]
[1727693891155,6.467,154.63,154.59,45.092]
[1727693891364,6.4667,154.64,154.6,10.53559827]
[1727693891665,6.4667,154.64,154.61,4.06739827]
[1727693891966,6.4667,154.64,154.62,4.06739827]
[1727693892171,6.4667,154.64,154.6,6.4682]
[1727693892482,6.4667,154.64,154.61,4.0684338]
[1727693892673,6.4667,154.64,154.62,4.0684338]
[1727693892971,6.4667,154.64,154.6,6.4682]
[1727693893143,6.4667,154.64,154.61,4.0695245]
[1727693893345,6.4667,154.64,154.62,4.0695245]
[1727693893645,6.4667,154.64,154.6,6.4682]
[1727693893946,6.4667,154.64,154.61,4.06963272]
[1727693894147,6.4667,154.64,154.62,4.06963272]
[1727693894345,6.4667,154.64,154.6,6.4682]
[1727693894647,6.4667,154.64,154.61,4.07083546]
[1727693894860,6.4667,154.64,154.6,6.4682]
[1727693894861,6.4667,154.64,154.62,4.07083546]
[1727693895165,6.4667,154.64,154.63,4.07270691]
[1727693895367,6.467,154.63,154.59,45.0921]
[1727693895570,6.467,154.63,154.6,4.07266645]
[1727693895866,6.467,154.63,154.61,4.07266645]
[1727693896051,6.467,154.63,154.62,4.07266645]
[1727693896584,6.4667,154.64,154.62,4.07266645]
[1727693896764,6.4667,154.64,154.6,6.4683]
[1727693899671,6.4671,154.63,154.59,45.0921]
[1727693907593,6.4671,154.63,154.55,32.3499]
[1727693907594,6.4679,154.61,154.57,6.4693]
[1727693908068,0.79949531,154.6,154.57,6.4693]
[1727693908274,6.4679,154.61,154.57,6.4693]
[1727693909075,6.4683,154.6,154.56,22.6437]
[1727693913470,20.25098,154.63,154.57,1.29383907]
[1727693913685,6.4679,154.61,154.57,7.76313907]
[1727693915990,6.4679,154.61,154.57,6.4693]
[1727693918170,6.4679,154.61,154.57,7.76304585]
[1727693918792,6.4679,154.61,154.57,6.4693]
[1727693923573,6.4679,154.61,154.57,7.76304084]
[1727693923775,6.4679,154.61,154.57,6.4693]
[1727693924299,6.4679,154.61,154.57,7.76304085]
[1727693925792,6.4683,154.6,154.57,7.76304085]
[1727693926181,6.4683,154.6,154.57,6.4693]
[1727693927181,6.4683,154.6,154.56,22.6438]
[1727693927901,6.4686,154.6,154.56,22.6438]
[1727693931507,0.12549,154.62,154.58,6.469]
[1727693931705,6.4678,154.61,154.57,7.76313447]
[1727693932500,20.0,154.63,154.57,1.29383447]
[1727693932697,6.4675,154.62,154.58,6.4689]
[1727693932895,22.85,154.66,154.59,1.29364859]
[1727693933104,6.4663,154.65,154.61,6.4676]
[1727693933609,6.4663,154.65,154.61,7.76099655]
[1727693938790,6.4666,154.64,154.61,1.29339655]
[1727693939693,6.4666,154.64,154.6,22.6386]
[1727693940319,16.1889,154.66,154.6,16.1705]
[1727693940613,6.4677,154.62,154.58,6.469]
[1727693942897,7.26769531,154.61,154.57,22.6422]
[1727693943112,20.25098,154.65,154.58,6.4691]
[1727693943327,6.4675,154.62,154.58,7.76280179]
[1727693944428,6.468,154.61,154.57,16.173]
[1727693944590,6.468,154.61,154.57,22.6425]
[1727693945614,6.4675,154.62,154.58,7.76265935]
[1727693947809,6.4672,154.63,154.58,7.76265935]
[1727693949425,6.4672,154.63,154.59,6.4684]
[1727693950931,6.4672,154.63,154.6,1.29353824]
[1727693951098,6.4672,154.63,154.59,7.76193824]
[1727693952030,6.4672,154.63,154.59,6.4684]
[1727693956121,6.4675,154.62,154.59,6.4684]
[1727693956314,6.4675,154.62,154.57,16.173]
[1727693957110,6.4675,154.62,154.58,6.4691]
[1727693957519,6.4675,154.62,154.57,16.173]
[1727693957715,6.4675,154.62,154.58,6.469]
[1727693963023,6.4683,154.6,154.57,16.173]
[1727693963933,0.25098,154.6,154.54,21.3196]
[1727693964140,6.4688,154.59,154.55,6.4702]
[1727693965134,6.4688,154.59,154.55,7.76409919]
[1727693967041,6.4681,154.61,154.57,6.4692]
[1727693967240,6.4681,154.61,154.57,7.76296161]